fUSD/lending_fUSD_20251028
["ID","MTS","AMOUNT","RATE_DAILY","PERIOD"]
[392528039,1761609628042,1600.0,0.00025775,120]
[392528040,1761609628395,1600.0,0.00028997,120]
[392528047,1761609725562,331.09450358,0.00037387,50]
[392528048,1761609725662,500.0,0.00037387,50]
[392528049,1761609726209,500.0,0.00037387,50]
[392528050,1761609727252,500.0,0.00037387,50]
[392528051,1761609727880,500.0,0.00037387,50]
[392528052,1761609728684,500.0,0.00037387,50]
[392528054,1761609732913,500.0,0.00037387,50]
[392528055,1761609733592,500.0,0.00037387,50]
[392528056,1761609734255,500.0,0.00037387,50]
[392528057,1761609765245,381.0,0.00031507,120]
[392528058,1761609862587,-178.95064141,0.00017914,2]
[392528059,1761609862609,-195.0,0.00017924,2]
[392528060,1761609862632,-150.0,0.00017934,2]
[392528061,1761609958028,1100.0,0.0003,120]
[392528062,1761609963077,229.49485554,0.00017934,2]
[392528063,1761609964176,152.99657036,0.00017934,2]
[392528064,1761609965399,151.0,0.00017934,2]
[392528065,1761609966271,154.99314072,0.00017934,2]
[392528066,1761609969835,185.84,0.00016712,2]
[392528068,1761610025672,500.0,0.00037387,50]
[392528069,1761610026273,500.0,0.00037387,50]
[392528070,1761610026911,500.0,0.00037387,50]
[392528071,1761610028415,500.0,0.00037387,50]
[392528072,1761610029086,500.0,0.00037387,50]
[392528073,1761610029713,500.0,0.00037387,50]
[392528074,1761610030959,414.0,0.00037387,50]
[392528075,1761610034081,500.0,0.00037387,50]
[392528076,1761610034799,500.0,0.00037387,50]
[392528077,1761610035398,250.0,0.00037387,50]
[392528078,1761610036070,250.0,0.00037387,50]
[392528079,1761610036153,250.0,0.00037387,50]
[392528080,1761610036699,250.0,0.00037387,50]
[392528081,1761610037334,250.0,0.00037387,50]
[392528082,1761610037938,250.0,0.00037387,50]
[392528083,1761610038564,250.0,0.00037387,50]
[392528084,1761610039991,250.0,0.00037387,50]
[392528085,1761610040645,250.0,0.00037387,50]
[392528093,1761610206828,153.29386746,0.00031506,120]
[392528105,1761610232310,-195.0,0.00018012,2]
[392528106,1761610232320,-156.40658039,0.00018013,2]
[392528107,1761610232530,-38.59341961,0.00018013,2]
[392528108,1761610232540,-195.0,0.00018608,2]
[392528109,1761610232551,-424.96406312,0.00018609,2]
[392528110,1761610232563,-75.03593688,0.00018609,2]
[392528111,1761610232573,-500.0,0.00018609,2]
[392528112,1761610232583,-500.0,0.00018609,2]
[392528113,1761610232593,-500.0,0.00018609,2]
[392528114,1761610232602,-500.0,0.00018609,2]
[392528115,1761610232614,-500.0,0.00018609,2]
[392528116,1761610232626,-500.0,0.00018609,2]
[392528117,1761610232635,-601.94841955,0.00018609,2]
[392528118,1761610232647,-354.20243409,0.00018609,2]
[392528119,1761610232660,-145.79756591,0.00018609,2]
[392528120,1761610232670,-360.22243409,0.00018609,2]
[392528122,1761610232683,-139.77756591,0.00018609,2]
[392528124,1761610232693,-500.0,0.00018609,2]
[392528126,1761610232703,-500.0,0.00018609,2]
[392528127,1761610232712,-500.0,0.00018609,2]
[392528129,1761610232722,-1079.26,0.00018611,2]
[392528131,1761610232731,-396.31622709,0.000187,2]
[392528134,1761610232748,-103.68377291,0.000187,2]
[392528136,1761610232757,-818.73152957,0.00018885,2]
[392528175,1761610238238,-260.52847043,0.00018885,2]
[392528176,1761610238247,-883.64429507,0.00019159,2]
[392528177,1761610238259,-195.61570493,0.00019159,2]
[392528178,1761610238268,-1079.26,0.00019433,2]
[392528179,1761610238278,-1079.26,0.00019707,2]
[392528180,1761610238289,-250.0,0.00019812,2]
[392528181,1761610238302,-195.0,0.00019812,2]
[392528182,1761610238313,-195.0,0.00019812,2]
[392528183,1761610238323,-1079.26,0.00019981,2]
[392528184,1761610238332,-1079.26,0.00020255,2]
[392528185,1761610238341,-1079.32,0.00020528,2]
[392528186,1761610238350,-250.45872092,0.00023149,2]
[392528187,1761610238360,-500.0,0.00024932,2]
[392528188,1761610238369,-500.0,0.00025726,2]
[392528189,1761610238379,-954.83,0.00025775,2]
[392528190,1761610238388,-1890.74,0.00025775,2]
[392528191,1761610238399,-3365.2,0.00025775,2]
[392528192,1761610238408,-1000.0,0.00025775,2]
[392528193,1761610238418,-476.74869043,0.00026664,2]
[392528194,1761610238427,-2000.0,0.000271,2]
[392528195,1761610238436,-174.91,0.00028266,2]
[392528196,1761610238445,-1000.0,0.00028997,2]
[392528197,1761610238454,-666.0,0.00030079,3]
[392528198,1761610238464,-7689.96,0.00030225,2]
[392528199,1761610238473,-2308.05,0.00030455,2]
[392528200,1761610238484,-879.6,0.00030461,2]
[392528201,1761610238494,-4386.52,0.00030503,2]
[392528202,1761610238504,-6388.74,0.00030554,2]
[392528203,1761610238514,-203.59262552,0.00030776,2]
[392528204,1761610238523,-19011.54,0.00030777,2]
[392528205,1761610238532,-2000.0,0.000308,2]
[392528206,1761610238541,-500.0,0.00030959,2]
[392528207,1761610238551,-167.27,0.00031015,2]
[392528208,1761610238561,-180.162,0.00031015,28]
[392528209,1761610238570,-500.0,0.00031389,2]
[392528210,1761610238579,-150.99,0.00031426,2]
[392528212,1761610238589,-8794.44,0.00031426,2]
[392528214,1761610238599,-6461.0,0.00031608,2]
[392528216,1761610238608,-3490.0,0.00031608,2]
[392528218,1761610238620,-558.0,0.00031608,2]
[392528220,1761610238630,-174.91,0.0003169,2]
[392528222,1761610238641,-1600.0,0.00032219,120]
[392528224,1761610238650,-1000.0,0.00032219,2]
[392528226,1761610238659,-600.0,0.00032424,7]
[392528228,1761610238669,-262.0,0.00032424,2]
[392528230,1761610238679,-600.0,0.00032469,7]
[392528232,1761610238688,-600.0,0.00032543,7]
[392528234,1761610238698,-700.0,0.00032547,7]
[392528236,1761610238708,-800.0,0.00032578,7]
[392528238,1761610238718,-800.0,0.00032584,7]
[392528240,1761610238727,-700.0,0.00032618,7]
[392528242,1761610238737,-800.0,0.0003262,7]
[392528244,1761610238746,-536.05764946,0.00032623,2]
[392528246,1761610238755,-600.0,0.00032624,7]
[392528247,1761610238765,-600.0,0.00032631,7]
[392528248,1761610238775,-500.0,0.00032652,7]
[392528249,1761610238784,-600.0,0.00032691,7]
[392528250,1761610238794,-600.0,0.00032694,7]
[392528251,1761610238804,-800.0,0.00032732,7]
[392528252,1761610238814,-800.0,0.00032736,7]
[392528253,1761610238824,-643.47499961,0.00032748,2]
[392528254,1761610238834,-715.90805044,0.00032748,2]
[392528255,1761610238843,-12224.19959167,0.00032748,2]
[392528256,1761610238853,-3934.03788304,0.000328,2]
[392528268,1761610243332,-1012.85979988,0.000328,2]
[392528269,1761610243343,-1130.40073013,0.000328,2]
[392528270,1761610243679,-780.95781,0.000328,2]
[392528271,1761610243690,-1338.89025357,0.000328,2]
[392528272,1761610243704,-2599.98899614,0.000328,2]
[392528273,1761610243715,-16090.98572024,0.000328,2]
[392528274,1761610243725,-461.412428,0.000328,2]
[392528277,1761610246756,-1142.7416,0.000328,2]
[392528282,1761610466921,378.44,0.00013699,2]
[392528285,1761610599923,866.46165976,0.00031507,120]
[392528287,1761610625339,200.0,0.00037387,50]
[392528288,1761610627953,160.12855637,0.00037387,50]
[392528289,1761610630270,1907.32,0.00031507,120]
[392528290,1761610631465,358.76359621,0.00037387,50]
[392528291,1761610633123,591.74589922,0.00037387,50]
[392528292,1761610633852,200.0,0.00037387,50]
[392528293,1761610634849,288.52305814,0.00037387,50]
[392528294,1761610638594,250.0,0.00037387,50]
[392528295,1761610639022,250.0,0.00037387,50]
[392528296,1761610639652,250.0,0.00037387,50]
[392528297,1761610640270,250.0,0.00037387,50]
[392528298,1761610866390,800.0,0.00026986,120]
[392528299,1761611005698,453.729,0.00031507,120]
[392528300,1761611107403,3223.28479197,0.00015,2]
[392528301,1761611147349,-281.72491337,0.00015,2]
[392528302,1761611152144,-264.46865671,0.00015,2]
[392528303,1761611155242,-249.45455634,0.00015,2]
[392528304,1761611157016,4955.337647,0.00014925,2]
[392528305,1761611157971,-250.0,0.00015,2]
[392528307,1761611192713,-301.59630084,0.00014999,2]
[392528308,1761611197156,-412.89136113,0.00014999,2]
[392528309,1761611199992,-278.47083198,0.00014999,2]
[392528310,1761611205108,-7.04150605,0.00014999,2]
[392528311,1761611205136,-180.0,0.00014999,2]
[392528312,1761611205159,-184.29756805,0.00014999,2]
[392528313,1761611205187,-62.56925913,0.00014999,2]
[392528314,1761611225031,-160.73,0.00014999,2]
[392528315,1761611231532,-115.36591976,0.00014999,2]
[392528316,1761611231556,-120.38140443,0.00014999,2]
[392528317,1761611234266,-53.08705282,0.00014999,2]
[392528318,1761611234295,-247.90967429,0.00014999,2]
[392528319,1761611248654,500.0,0.00037386,50]
[392528320,1761611252221,-252.09032571,0.00014999,2]
[392528321,1761611252250,-18.99256965,0.00014999,2]
[392528322,1761611254483,500.0,0.00037386,50]
[392528324,1761611258122,-215.81233808,0.00014999,2]
[392528325,1761611258151,-120.20180019,0.00014999,2]
[392528326,1761611265101,-184.15776936,0.00014999,2]
[392528327,1761611266959,616.128,0.00037386,50]
[392528330,1761611295991,-195.64043045,0.00014999,2]
[392528331,1761611296019,-105.19402613,0.00014999,2]
[392528333,1761611312265,-212.70567176,0.00014999,2]
[392528334,1761611316336,-182.10030211,0.00014999,2]
[392528335,1761611316363,-75.39204029,0.00014999,2]
[392528337,1761611320236,-185.98484345,0.00014999,2]
[392528338,1761611324625,-238.62311626,0.00014999,2]
[392528339,1761611324654,-144.57688374,0.00014999,2]
[392528340,1761611327416,-193.97461119,0.00014999,2]
[392528341,1761611331677,-161.44850507,0.00014999,2]
[392528342,1761611331701,-268.27495618,0.00014999,2]
[392528343,1761611334810,-195.0,0.00014999,2]
[392528344,1761611339321,-36.72504382,0.00014999,2]
[392528345,1761611339355,-236.89166605,0.00014999,2]
[392528346,1761611341942,-197.21481574,0.00014999,2]
[392528347,1761611372235,-65.89351821,0.00014999,2]
[392528348,1761611372257,-120.22161435,0.00015,2]
[392528349,1761611402173,-300.0,0.00014999,2]
[392528357,1761611431580,-195.0,0.00014999,2]
[392528358,1761611431590,-74.77838565,0.00015,2]
[392528359,1761611431601,-4709.0131361,0.00015,2]
[392528360,1761611431613,-2171.99,0.00015,2]
[392528361,1761611431645,-1543.162,0.00015,2]
[392528362,1761611431657,-3785.92125758,0.00015,2]
[392528363,1761611431708,-462.06112615,0.00015,2]
[392528364,1761611431873,-1129.85272405,0.00015,2]
[392528421,1761611437410,-1247.48773818,0.00015,2]
[392528422,1761611437423,-327.27518496,0.00015,2]
[392528423,1761611437435,-745.83216302,0.00015,2]
[392528424,1761611437450,-3948.53693535,0.00015,2]
[392528425,1761611437637,-551.69483698,0.00015,2]
[392528427,1761611439994,-1.6e-07,0.00015,2]
[392528428,1761611440006,-11200.0,0.00015,2]
[392528439,1761611445685,-957.26183999,0.00015,2]
[392528440,1761611445697,-295.76180086,0.00015,2]
[392528443,1761611461748,10414.39961313,0.0001485,2]
[392528444,1761611525249,161.0,0.000315,120]
[392528445,1761611526163,161.0,0.000315,120]
[392528447,1761611617930,151.1,0.00014414,2]
[392528448,1761611650106,200.0,0.00014342,2]
[392528451,1761611739886,150.0,0.00027284,120]
[392528452,1761611777717,-290.46950005,0.00014991,2]
[392528453,1761611777739,-87.86908926,0.00014995,2]
[392528454,1761611825746,500.0,0.00037386,50]
[392528455,1761611828344,152.4388724,0.00037386,50]
[392528456,1761611828377,151.0,0.00037386,50]
[392528458,1761612005904,192.0,0.00030339,120]
[392528459,1761612075355,536.05764946,0.00014791,2]
[392528511,1761612125015,500.0,0.00037385,50]
[392528512,1761612125102,250.0,0.00037385,50]
[392528513,1761612125692,250.0,0.00037385,50]
[392528514,1761612125722,500.0,0.00037385,50]
[392528515,1761612126346,500.0,0.00037385,50]
[392528516,1761612130027,500.0,0.00037385,50]
[392528517,1761612130148,266.58993331,0.00037385,50]
[392528518,1761612130711,500.0,0.00037385,50]
[392528519,1761612130940,250.0,0.00037385,50]
[392528520,1761612131613,250.0,0.00037385,50]
[392528521,1761612133848,250.0,0.00037385,50]
[392528522,1761612134507,250.0,0.00037385,50]
[392528523,1761612135184,250.0,0.00037385,50]
[392528524,1761612135771,250.0,0.00037385,50]
[392528525,1761612136381,250.0,0.00037385,50]
[392528526,1761612137004,250.0,0.00037385,50]
[392528527,1761612137666,250.0,0.00037385,50]
[392528528,1761612138293,250.0,0.00037385,50]
[392528531,1761612171069,545.88,0.00031507,120]
[392528544,1761612425357,500.0,0.00037385,50]
[392528545,1761612426034,500.0,0.00037385,50]
[392528546,1761612430493,500.0,0.00037385,50]
[392528547,1761612430679,250.0,0.00037385,50]
[392528548,1761612431130,500.0,0.00037385,50]
[392528549,1761612431337,250.0,0.00037385,50]
[392528550,1761612433385,250.0,0.00037385,50]
[392528551,1761612433454,250.0,0.00037385,50]
[392528552,1761612434007,250.0,0.00037385,50]
[392528553,1761612434071,250.0,0.00037385,50]
[392528554,1761612434608,250.0,0.00037385,50]
[392528555,1761612434733,250.0,0.00037385,50]
[392528556,1761612435728,250.0,0.00037385,50]
[392528557,1761612436437,250.0,0.00037385,50]
[392528558,1761612437135,250.0,0.00037385,50]
[392528559,1761612437781,250.0,0.00037385,50]
[392528560,1761612438452,250.0,0.00037385,50]
[392528578,1761612631893,-195.0,0.00014998,2]
[392528579,1761612631903,-132.77581439,0.00014998,2]
[392528580,1761612631917,-62.22418561,0.00014998,2]
[392528581,1761612631927,-1000.0,0.00014999,2]
[392528582,1761612631936,-23959.5933899,0.00015,2]
[392528583,1761612631948,-500.54976772,0.00015,2]
[392528661,1761612684053,257.0365,0.00014898,2]
[392528662,1761612709125,3000.0,0.00037385,50]
[392528663,1761612714584,3000.0,0.00037385,50]
[392528664,1761612717284,3000.0,0.00037385,50]
[392528665,1761612720795,3000.0,0.00037385,50]
[392528666,1761612723307,3000.0,0.00037385,50]
[392528667,1761612725258,500.0,0.00037385,50]
[392528668,1761612725898,500.0,0.00037385,50]
[392528669,1761612728092,250.0,0.00037385,50]
[392528670,1761612728671,500.0,0.00037385,50]
[392528671,1761612728712,250.0,0.00037385,50]
[392528672,1761612728751,250.0,0.00037385,50]
[392528673,1761612729299,500.0,0.00037385,50]
[392528674,1761612729331,250.0,0.00037385,50]
[392528675,1761612729405,250.0,0.00037385,50]
[392528676,1761612730031,250.0,0.00037385,50]
[392528677,1761612730312,250.0,0.00037385,50]
[392528678,1761612730651,250.0,0.00037385,50]
[392528679,1761612730957,250.0,0.00037385,50]
[392528680,1761612731558,250.0,0.00037385,50]
[392528681,1761612732018,250.0,0.00037385,50]
[392528682,1761612732074,1156.46204106,0.00037385,50]
[392528683,1761612732695,250.0,0.00037385,50]
[392528684,1761612733320,250.0,0.00037385,50]
[392528685,1761612826093,172.38685123,0.00014913,2]
[392528686,1761612936955,1000.0,0.00031507,120]
[392528687,1761613026021,500.0,0.00037385,50]
[392528688,1761613026061,414.0,0.00037385,50]
[392528689,1761613026530,500.0,0.00037385,50]
[392528690,1761613028294,500.0,0.00037385,50]
[392528691,1761613028920,500.0,0.00037385,50]
[392528692,1761613030620,500.0,0.00037385,50]
[392528693,1761613031324,268.82144481,0.00037385,50]
[392528694,1761613033337,250.0,0.00037385,50]
[392528695,1761613034000,250.0,0.00037385,50]
[392528696,1761613153554,172.38685122,0.00014907,2]
[392528697,1761613262445,151.0,0.00014913,2]
[392528698,1761613262655,151.0,0.00014913,2]
[392528699,1761613325035,500.0,0.00037385,50]
[392528700,1761613325293,500.0,0.00037385,50]
[392528701,1761613325371,500.0,0.00037385,50]
[392528702,1761613325869,500.0,0.00037385,50]
[392528703,1761613325997,500.0,0.00037385,50]
[392528704,1761613326056,500.0,0.00037385,50]
[392528705,1761613328012,250.0,0.00037385,50]
[392528706,1761613328847,250.0,0.00037385,50]
[392528707,1761613331118,160.12855637,0.00037385,50]
[392528708,1761613332293,250.0,0.00037385,50]
[392528709,1761613332999,250.0,0.00037385,50]
[392528710,1761613333371,250.0,0.00037385,50]
[392528711,1761613333620,250.0,0.00037385,50]
[392528712,1761613333984,250.0,0.00037385,50]
[392528713,1761613334745,250.0,0.00037385,50]
[392528714,1761613335348,250.0,0.00037385,50]
[392528715,1761613335950,250.0,0.00037385,50]
[392528716,1761613336566,250.0,0.00037385,50]
[392528717,1761613385346,-270.06544656,0.00015,2]
[392528718,1761613389055,-348.45939376,0.00015,2]
[392528719,1761613397119,-261.57884123,0.00015,2]
[392528720,1761613401943,-194.84474966,0.00015,2]
[392528721,1761613404466,-188.02723125,0.00015,2]
[392528722,1761613410673,979.70857441,0.00037385,120]
[392528723,1761613413171,-386.74080036,0.00015,2]
[392528724,1761613430385,-261.99,0.00015,2]
[392528725,1761613433030,-165.17624386,0.00015,2]
[392528726,1761613436650,-283.14637163,0.00015,2]
[392528727,1761613445019,405.63910659,0.00037385,120]
[392528728,1761613456015,225.3146,0.0001498,2]
[392528729,1761613456059,225.31461,0.0001498,2]
[392528730,1761613456378,225.3146,0.0001498,2]
[392528731,1761613456494,225.31461,0.0001498,2]
[392528732,1761613456592,225.3146,0.0001498,2]
[392528733,1761613458035,225.3146,0.0001498,2]
[392528734,1761613460579,1629.43976,0.0001485,2]
[392528735,1761613468757,172.38685122,0.000149,2]
[392528741,1761613525235,151.0,0.0001985,7]
[392528742,1761613535625,151.0,0.0001985,7]
[392528743,1761613537204,151.0,0.0001985,7]
[392528744,1761613550565,398.0,0.00013699,2]
[392528746,1761613625013,250.0,0.00037385,120]
[392528747,1761613625185,500.0,0.00037385,120]
[392528748,1761613625647,250.0,0.00037385,120]
[392528749,1761613625804,500.0,0.00037385,120]
[392528750,1761613626298,250.0,0.00037385,120]
[392528751,1761613626427,500.0,0.00037385,120]
[392528752,1761613626986,250.0,0.00037385,120]
[392528753,1761613627055,500.0,0.00037385,120]
[392528754,1761613627645,250.0,0.00037385,120]
[392528755,1761613627829,500.0,0.00037385,120]
[392528756,1761613628322,250.0,0.00037385,120]
[392528757,1761613628514,500.0,0.00037385,120]
[392528758,1761613628925,250.0,0.00037385,120]
[392528759,1761613629127,500.0,0.00037385,120]
[392528760,1761613629604,250.0,0.00037385,120]
[392528761,1761613636291,250.0,0.00037385,120]
[392528771,1761613832004,-518.38854276,0.00015,2]
[392528772,1761613832220,-20886.36099203,0.00015,2]
[392528775,1761613837797,-272.56440073,0.00015,2]
[392528935,1761613839983,-841.0,0.00015,2]
[392528939,1761613840020,-2293.03180696,0.00015,2]
[392528947,1761613840080,-3822.4361223,0.00015,2]
[392528949,1761613840090,-151.0,0.00015,2]
[392528951,1761613840099,-227.73196735,0.00015,2]
[392528953,1761613840109,-227.73196735,0.00015,2]
[392528955,1761613840118,-227.73196735,0.00015,2]
[392528957,1761613840127,-195.0,0.00015,2]
[392528959,1761613840137,-195.0,0.00015,2]
[392528961,1761613840148,-151.1,0.00015215,2]
[392528963,1761613840157,-1629.43976,0.0001527,2]
[392528965,1761613840166,-500.952163,0.000156,2]
[392528967,1761613840176,-171.2744264,0.000156,2]
[392528969,1761613840185,-405.47339345,0.000156,2]
[392528971,1761613840198,-452.94678411,0.000157,2]
[392528973,1761613840208,-500.0,0.0001575,2]
[392528975,1761613840217,-500.0,0.0001575,2]
[392528977,1761613840227,-500.0,0.0001575,2]
[392528979,1761613840236,-500.0,0.0001575,2]
[392528981,1761613840245,-1629.43977,0.0001578,2]
[392528983,1761613840254,-151.1,0.00016015,2]
[392528985,1761613840264,-1629.43976,0.0001627,2]
[392528987,1761613840273,-237.06562523,0.00016437,2]
[392528989,1761613840282,-507.50304906,0.00016438,2]
[392528991,1761613840291,-2383.14637859,0.00016438,2]
[392528993,1761613840301,-500.0,0.00016438,2]
[392528996,1761613840315,-250.0,0.000165,2]
[392528998,1761613840326,-195.0,0.000165,2]
[392529001,1761613840340,-362.19802792,0.000165,2]
[392529003,1761613840352,-195.0,0.000165,2]
[392529005,1761613840365,-195.0,0.000165,2]
[392529008,1761613840376,-150.0,0.000165,2]
[392529010,1761613840390,-186.11513256,0.000166,2]
[392529012,1761613840401,-4001.07894745,0.00016609,2]
[392529015,1761613840414,-185.84,0.00016712,2]
[392529017,1761613840424,-500.0,0.00016712,2]
[392529019,1761613840436,-1629.43976,0.0001677,2]
[392529021,1761613840447,-151.1,0.00016816,2]
[392529024,1761613840460,-1629.43977,0.0001727,2]
[392529026,1761613840472,-500.0,0.00017452,2]
[392529028,1761613840484,-795.62908935,0.000175,2]
[392529031,1761613840495,-151.1,0.00017617,2]
[392529033,1761613840506,-151.0,0.00017863,2]
[392529035,1761613840517,-151.0,0.00017863,2]
[392529037,1761613840527,-150.0,0.00018036,2]
[392529039,1761613840541,-151.1,0.00018418,2]
[392529042,1761613840553,-500.0,0.00018548,2]
[392529044,1761613840564,-151.1,0.00019218,2]
[392529046,1761613840579,-151.1,0.00020019,2]
[392529049,1761613840591,-398.0,0.00020187,2]
[392529051,1761613840603,-500.0,0.00020192,2]
[392529053,1761613840616,-151.1,0.0002082,2]
[392529056,1761613840627,-151.1,0.00021621,2]
[392529058,1761613840640,-151.1,0.00022422,2]
[392529060,1761613840653,-500.0,0.00022685,2]
[392529062,1761613840664,-151.1,0.00023222,2]
[392529065,1761613840676,-2000.0,0.000236,2]
[392529067,1761613840688,-151.1,0.00024023,2]
[392529069,1761613840700,-2244.95224673,0.00024272,2]
[392529072,1761613840720,-19819.43775327,0.00024272,2]
[392529075,1761613840732,-151.0,0.00024272,7]
[392529077,1761613840743,-154.099196,0.00024272,7]
[392529079,1761613840753,-1000.0,0.00024322,2]
[392529081,1761613840765,-174.91,0.00024658,2]
[392529084,1761613840776,-151.1,0.00024824,2]
[392529086,1761613840789,-500.0,0.00024932,2]
[392529089,1761613840803,-636.23,0.00024955,2]
[392529091,1761613840815,-151.0,0.00024997,7]
[392529093,1761613840829,-151.1,0.00025625,2]
[392529096,1761613840841,-200.0,0.00025918,2]
[392529098,1761613840852,-165.51,0.00025993,2]
[392529100,1761613840862,-500.0,0.00026411,2]
[392529102,1761613840872,-151.1,0.00026425,2]
[392529104,1761613840883,-1001.8282,0.00026554,2]
[392529106,1761613840893,-23848.13,0.00026555,2]
[392529109,1761613840904,-151.0,0.00026555,7]
[392529111,1761613840919,-151.0,0.00026555,7]
[392529113,1761613840930,-429.00478224,0.00026555,2]
[392529116,1761613840950,-464.0422953,0.00026574,2]
[392529119,1761613840962,-398.0,0.00026676,2]
[392529121,1761613840973,-564.52,0.00026757,2]
[392529123,1761613840984,-2193.26,0.00026757,2]
[392529125,1761613840997,-1852.42,0.00026943,2]
[392529128,1761613841010,-200.0,0.00027084,2]
[392529131,1761613841026,-1000.0,0.00027195,2]
[392529133,1761613841041,-151.1,0.00027226,2]
[392529135,1761613841052,-150.0,0.00027284,2]
[392529137,1761613841062,-2000.0,0.000273,2]
[392529140,1761613841073,-317.14,0.00027305,2]
[392529142,1761613841083,-1000.0,0.00027362,2]
[392529144,1761613841094,-151.0,0.00027397,7]
[392529147,1761613841112,-765.72,0.00027397,30]
[392529149,1761613841124,-151.0,0.00027397,31]
[392529152,1761613841136,-180.0,0.00027397,31]
[392529154,1761613841148,-311.72681,0.00027397,31]
[392529156,1761613841160,-311.72681,0.00027397,31]
[392529159,1761613841172,-311.72681,0.00027397,31]
[392529161,1761613841184,-311.72681,0.00027397,31]
[392529163,1761613841195,-151.0,0.00027397,15]
[392529165,1761613841207,-151.0,0.00027397,15]
[392529168,1761613841220,-151.0,0.00027397,10]
[392529170,1761613841233,-151.0,0.00027397,31]
[392529172,1761613841244,-151.0,0.00027397,31]
[392529174,1761613841255,-151.0,0.00027397,31]
[392529177,1761613841267,-151.0,0.00027397,31]
[392529179,1761613841279,-151.0,0.00027397,31]
[392529181,1761613841290,-224.012271,0.00027397,31]
[392529183,1761613841301,-160.33840558,0.00027667,2]
[392529185,1761613841312,-500.0,0.00027667,5]
[392529187,1761613841323,-500.0,0.00027667,5]
[392529190,1761613841334,-506.12795543,0.00027667,5]
[392529192,1761613841345,-166.66,0.00028006,2]
[392529194,1761613841356,-151.1,0.00028027,2]
[392529196,1761613841368,-151.0,0.00028203,30]
[392529198,1761613841378,-151.0,0.00028203,31]
[392529201,1761613841390,-19999.99,0.00028203,2]
[392529203,1761613841401,-500.0,0.00028215,5]
[392529205,1761613841412,-317.14,0.00028329,2]
[392529207,1761613841423,-150.0,0.00028506,2]
[392529209,1761613841433,-165.51,0.00028592,2]
[392529212,1761613841445,-151.0,0.00028712,31]
[392529214,1761613841459,-151.0,0.00028712,31]
[392529217,1761613841472,-311.72681,0.00028712,31]
[392529219,1761613841484,-311.72681,0.00028712,31]
[392529222,1761613841496,-311.72681,0.00028712,31]
[392529224,1761613841508,-311.72681,0.00028712,31]
[392529226,1761613841520,-311.72681,0.00028712,31]
[392529228,1761613841533,-311.72681,0.00028712,31]
[392529231,1761613841551,-311.72681,0.00028712,31]
[392529233,1761613841563,-311.72681,0.00028712,31]
[392529235,1761613841574,-54604.20317692,0.00028712,2]
[392529237,1761613841587,-527.41683581,0.00028773,5]
[392529240,1761613841598,-500.0,0.00028773,5]
[392529242,1761613841610,-170.02028063,0.00028773,2]
[392529244,1761613841623,-151.1,0.00028828,2]